[Event "*** Qualifier 4: Titled Tuesday 3|2 Blitz"]
[Site "Chess.com"]
[Date "2017.04.25"]
[Round "3"]
[White "ruvat"]
[Black "MasterLeif"]
[Result "1/2-1/2"]
[WhiteElo "2246"]
[BlackElo "2290"]
[TimeControl "180+2"]
[EndTime "13:34:53 PDT"]
[Termination "Game drawn - insufficient material"]

1. d4 {[%clk 0:02:58.2]} 1... d5 {[%clk 0:03:00.6]} 2. Nf3 {[%clk 0:02:57.7]}
2... Nf6 {[%clk 0:03:01.8]} 3. c4 {[%clk 0:02:58.8]} 3... e6 {[%clk 0:03:03]} 4.
g3 {[%clk 0:02:59.1]} 4... Bb4+ {[%clk 0:03:02.5]} 5. Bd2 {[%clk 0:02:59.5]}
5... Be7 {[%clk 0:03:03.7]} 6. Bg2 {[%clk 0:03:00.1]} 6... O-O {[%clk
0:03:04.4]} 7. O-O {[%clk 0:03:01.1]} 7... c6 {[%clk 0:03:05.7]} 8. Qc2 {[%clk
0:03:01.2]} 8... Nbd7 {[%clk 0:03:06.8]} 9. b3 {[%clk 0:03:02]} 9... b6 {[%clk
0:03:08.3]} 10. a4 {[%clk 0:03:02.4]} 10... Bb7 {[%clk 0:03:09.2]} 11. a5 {[%clk
0:02:56.6]} 11... bxa5 {[%clk 0:03:10.2]} 12. Bxa5 {[%clk 0:02:55.2]} 12... Qb8
{[%clk 0:03:11.6]} 13. Bc3 {[%clk 0:02:49.7]} 13... Ne4 {[%clk 0:03:12.2]} 14.
Bb2 {[%clk 0:02:49.6]} 14... c5 {[%clk 0:03:12.5]} 15. Nbd2 {[%clk 0:02:47.8]}
15... Nxd2 {[%clk 0:03:08.3]} 16. Nxd2 {[%clk 0:02:41.7]} 16... cxd4 {[%clk
0:03:07.3]} 17. cxd5 {[%clk 0:02:41.3]} 17... Bxd5 {[%clk 0:03:08.2]} 18. Bxd5
{[%clk 0:02:38.4]} 18... exd5 {[%clk 0:03:10.1]} 19. Bxd4 {[%clk 0:02:39.5]}
19... Rc8 {[%clk 0:03:08.5]} 20. Qb2 {[%clk 0:02:40.2]} 20... Bf6 {[%clk
0:03:09.2]} 21. Nf3 {[%clk 0:02:34.6]} 21... Qb7 {[%clk 0:03:08.1]} 22. Bxf6
{[%clk 0:02:32.5]} 22... Nxf6 {[%clk 0:03:10]} 23. Nd4 {[%clk 0:02:32.6]} 23...
h6 {[%clk 0:03:06.7]} 24. Rfc1 {[%clk 0:02:28.6]} 24... Qb6 {[%clk 0:03:05.3]}
25. e3 {[%clk 0:02:22.1]} 25... Ne4 {[%clk 0:03:05.7]} 26. Rxc8+ {[%clk
0:02:22.4]} 26... Rxc8 {[%clk 0:03:05.8]} 27. Qa3 {[%clk 0:02:09.9]} 27... Rc7
{[%clk 0:02:50.4]} 28. Qa5 {[%clk 0:02:10.3]} 28... Rc1+ {[%clk 0:02:30]} 29.
Kg2 {[%clk 0:02:09.2]} 29... Rxa1 {[%clk 0:02:14.4]} 30. Qxa1 {[%clk 0:02:11.1]}
30... Qb4 {[%clk 0:02:08]} 31. Qd1 {[%clk 0:01:55.6]} 31... Nc5 {[%clk
0:01:47.2]} 32. Qg4 {[%clk 0:01:40.6]} 32... Ne6 {[%clk 0:01:33.1]} 33. Qd1
{[%clk 0:01:28.3]} 33... Nxd4 {[%clk 0:01:31.2]} 34. exd4 {[%clk 0:01:20.3]}
34... Qc3 {[%clk 0:01:31.7]} 35. h4 {[%clk 0:01:06.4]} 35... h5 {[%clk
0:01:20.9]} 36. Qxh5 {[%clk 0:01:02.1]} 36... Qxd4 {[%clk 0:01:21.5]} 37. Qf5
{[%clk 0:00:53]} 37... g6 {[%clk 0:01:19.5]} 38. Qf3 {[%clk 0:00:48.5]} 38... a5
{[%clk 0:01:14.8]} 39. g4 {[%clk 0:00:48.6]} 39... Kg7 {[%clk 0:00:53.3]} 40.
Kg3 {[%clk 0:00:49.4]} 40... a4 {[%clk 0:00:43.7]} 41. bxa4 {[%clk 0:00:48.3]}
41... Qc4 {[%clk 0:00:38.1]} 42. g5 {[%clk 0:00:36.5]} 42... d4 {[%clk
0:00:28.1]} 43. Qf6+ {[%clk 0:00:36.6]} 43... Kh7 {[%clk 0:00:29.6]} 44. h5
{[%clk 0:00:33.8]} 44... gxh5 {[%clk 0:00:29.7]} 45. Qh6+ {[%clk 0:00:34.1]}
45... Kg8 {[%clk 0:00:31.1]} 46. Qxh5 {[%clk 0:00:30.3]} 46... Qxa4 {[%clk
0:00:29]} 47. g6 {[%clk 0:00:23.6]} 47... Qb3+ {[%clk 0:00:27.1]} 48. Kh2 {[%clk
0:00:21]} 48... Qb8+ {[%clk 0:00:23.8]} 49. Kg2 {[%clk 0:00:18]} 49... Qb7+
{[%clk 0:00:24.2]} 50. Kh2 {[%clk 0:00:17.2]} 50... Qc7+ {[%clk 0:00:23.9]} 51.
Kg2 {[%clk 0:00:15]} 51... Qc6+ {[%clk 0:00:24.1]} 52. Kf1 {[%clk 0:00:14.1]}
52... Qxg6 {[%clk 0:00:21]} 53. Qxg6+ {[%clk 0:00:10.4]} 53... fxg6 {[%clk
0:00:22.2]} 54. Ke2 {[%clk 0:00:12]} 54... Kf7 {[%clk 0:00:23.1]} 55. Kd3 {[%clk
0:00:13.6]} 55... Kf6 {[%clk 0:00:24.8]} 56. Kxd4 {[%clk 0:00:14.9]} 56... Kf5
{[%clk 0:00:26.7]} 57. Ke3 {[%clk 0:00:16]} 57... g5 {[%clk 0:00:28]} 58. Kf3
{[%clk 0:00:16.8]} 58... Ke5 {[%clk 0:00:29.3]} 59. Kg4 {[%clk 0:00:17.5]} 59...
Kf6 {[%clk 0:00:31.2]} 60. f4 {[%clk 0:00:18.7]} 60... gxf4 {[%clk 0:00:33.1]}
61. Kxf4 {[%clk 0:00:19.9]} 1/2-1/2

[Event "*** Qualifier 4: Titled Tuesday 3|2 Blitz"]
[Site "Chess.com"]
[Date "2017.04.25"]
[Round "3"]
[White "Alex_Molchanov"]
[Black "daro94"]
[Result "0-1"]
[WhiteElo "2431"]
[BlackElo "2730"]
[TimeControl "180+2"]
[EndTime "13:35:03 PDT"]
[Termination "daro94 won by resignation"]

1. d4 {[%clk 0:03:02]} 1... Nf6 {[%clk 0:02:45.6]} 2. c4 {[%clk 0:03:02.4]} 2...
e6 {[%clk 0:02:47.1]} 3. Nf3 {[%clk 0:03:02.1]} 3... Bb4+ {[%clk 0:02:47]} 4.
Nbd2 {[%clk 0:03:02.7]} 4... O-O {[%clk 0:02:47.6]} 5. g3 {[%clk 0:03:03.1]}
5... b6 {[%clk 0:02:44.9]} 6. Bg2 {[%clk 0:03:03.3]} 6... Bb7 {[%clk 0:02:46.4]}
7. O-O {[%clk 0:03:04.3]} 7... Re8 {[%clk 0:02:39.2]} 8. Qc2 {[%clk 0:03:00.2]}
8... d5 {[%clk 0:02:38.6]} 9. cxd5 {[%clk 0:02:59]} 9... exd5 {[%clk 0:02:39]}
10. Ne5 {[%clk 0:02:48.1]} 10... Bf8 {[%clk 0:02:38.5]} 11. Ndf3 {[%clk
0:02:41.8]} 11... c5 {[%clk 0:02:37.9]} 12. b3 {[%clk 0:02:18.3]} 12... Nc6
{[%clk 0:02:23.2]} 13. Nxc6 {[%clk 0:02:14.3]} 13... Bxc6 {[%clk 0:02:24.5]} 14.
Bb2 {[%clk 0:02:02.6]} 14... Rc8 {[%clk 0:02:20.4]} 15. dxc5 {[%clk 0:01:58.9]}
15... bxc5 {[%clk 0:02:19.5]} 16. Ne5 {[%clk 0:01:39]} 16... Ba8 {[%clk
0:02:15.4]} 17. Rfd1 {[%clk 0:01:36.7]} 17... d4 {[%clk 0:02:10.1]} 18. Bxa8
{[%clk 0:01:25.4]} 18... Rxa8 {[%clk 0:02:12]} 19. Nc4 {[%clk 0:01:18.6]} 19...
Qd5 {[%clk 0:01:42.6]} 20. e3 {[%clk 0:01:05.1]} 20... Ne4 {[%clk 0:01:43.8]}
21. f4 {[%clk 0:00:38.8]} 21... Rad8 {[%clk 0:01:39.3]} 22. Rd3 {[%clk 0:00:33]}
22... Qh5 {[%clk 0:01:08.3]} 23. Qd1 {[%clk 0:00:27.9]} 23... Qf5 {[%clk
0:01:07.1]} 24. exd4 {[%clk 0:00:18.7]} 24... cxd4 {[%clk 0:01:07.4]} 25. Bxd4
{[%clk 0:00:19.9]} 25... Rxd4 {[%clk 0:00:49.2]} 26. Rxd4 {[%clk 0:00:20.7]}
26... Nc3 {[%clk 0:00:50.7]} 27. Qd3 {[%clk 0:00:18.1]} 27... Ne2+ {[%clk
0:00:51.3]} 28. Kg2 {[%clk 0:00:14.9]} 28... Nxd4 {[%clk 0:00:35.9]} 29. Qxd4
{[%clk 0:00:15.3]} 29... Re2+ {[%clk 0:00:34.2]} 30. Kf3 {[%clk 0:00:08.7]}
30... Qh5+ {[%clk 0:00:26.5]} 31. g4 {[%clk 0:00:08.7]} 31... Qxh2 {[%clk
0:00:28.1]} 32. Qg1 {[%clk 0:00:07.9]} 32... Qxg1 {[%clk 0:00:23.9]} 33. Rxg1
{[%clk 0:00:09.8]} 33... Rxa2 {[%clk 0:00:25.5]} 34. Rg2 {[%clk 0:00:10.3]}
34... Rxg2 {[%clk 0:00:22.2]} 35. Kxg2 {[%clk 0:00:11.3]} 35... f6 {[%clk
0:00:23.9]} 36. Kf3 {[%clk 0:00:12.4]} 36... Kf7 {[%clk 0:00:24.4]} 37. f5
{[%clk 0:00:13.8]} 37... g6 {[%clk 0:00:22.3]} 38. Ke4 {[%clk 0:00:14.7]} 38...
Bc5 {[%clk 0:00:23.7]} 39. Kd5 {[%clk 0:00:13.8]} 39... Bf2 {[%clk 0:00:23.1]}
40. b4 {[%clk 0:00:14]} 40... gxf5 {[%clk 0:00:23.9]} 41. gxf5 {[%clk
0:00:15.1]} 41... h5 {[%clk 0:00:25.5]} 42. Ke4 {[%clk 0:00:12.1]} 42... Kg7
{[%clk 0:00:19.5]} 43. Nd6 {[%clk 0:00:10.2]} 43... Bb6 {[%clk 0:00:17.5]} 44.
b5 {[%clk 0:00:10.4]} 44... Bc5 {[%clk 0:00:17.7]} 45. Ne8+ {[%clk 0:00:09.1]}
45... Kf7 {[%clk 0:00:18.4]} 46. Nc7 {[%clk 0:00:10.2]} 46... Bb6 {[%clk
0:00:11.9]} 47. Nd5 {[%clk 0:00:11]} 47... Kg7 {[%clk 0:00:12]} 48. Kf3 {[%clk
0:00:11.5]} 48... Bd8 {[%clk 0:00:12.4]} 49. Kg3 {[%clk 0:00:11.3]} 49... Kh6
{[%clk 0:00:13.7]} 50. Kh4 {[%clk 0:00:12.5]} 50... Ba5 {[%clk 0:00:13]} 51. Ne7
{[%clk 0:00:09.2]} 51... Be1+ {[%clk 0:00:13.8]} 52. Kh3 {[%clk 0:00:09.8]}
52... Kg5 {[%clk 0:00:15.4]} 53. Nc6 {[%clk 0:00:08.8]} 53... Bf2 {[%clk
0:00:16.8]} 54. Ne7 {[%clk 0:00:08.2]} 54... Bc5 {[%clk 0:00:18]} 55. Kg2 {[%clk
0:00:09.4]} 55... Bxe7 {[%clk 0:00:18.8]} 56. Kg3 {[%clk 0:00:09.9]} 56... Kxf5
{[%clk 0:00:19.1]} 57. Kh4 {[%clk 0:00:11.8]} 57... Bc5 {[%clk 0:00:20.4]} 58.
Kxh5 {[%clk 0:00:13.2]} 58... Ke4 {[%clk 0:00:22]} 59. Kg4 {[%clk 0:00:14]}
59... Bb6 {[%clk 0:00:23.3]} 60. Kg3 {[%clk 0:00:14.9]} 60... f5 {[%clk
0:00:25.2]} 61. Kg2 {[%clk 0:00:16.5]} 61... f4 {[%clk 0:00:26.8]} 62. Kf1
{[%clk 0:00:18.4]} 62... f3 {[%clk 0:00:28.1]} 0-1

[Event "*** Qualifier 4: Titled Tuesday 3|2 Blitz"]
[Site "Chess.com"]
[Date "2017.04.25"]
[Round "3"]
[White "1stSecond"]
[Black "Bengalas"]
[Result "1-0"]
[WhiteElo "2492"]
[BlackElo "2402"]
[TimeControl "180+2"]
[EndTime "13:35:06 PDT"]
[Termination "1stSecond won by resignation"]

1. d4 {[%clk 0:03:02]} 1... Nf6 {[%clk 0:02:59.4]} 2. c4 {[%clk 0:03:02.9]} 2...
e6 {[%clk 0:03:00]} 3. Nf3 {[%clk 0:03:04.2]} 3... Bb4+ {[%clk 0:03:00.8]} 4.
Nbd2 {[%clk 0:03:04.1]} 4... O-O {[%clk 0:03:01.3]} 5. g3 {[%clk 0:03:03.7]}
5... d5 {[%clk 0:03:00.6]} 6. Bg2 {[%clk 0:03:02.5]} 6... b6 {[%clk 0:03:01.4]}
7. O-O {[%clk 0:03:02.5]} 7... Bb7 {[%clk 0:03:02.2]} 8. Ne5 {[%clk 0:03:02.3]}
8... Nbd7 {[%clk 0:02:59.2]} 9. Ndf3 {[%clk 0:03:03.2]} 9... Nxe5 {[%clk
0:02:45.8]} 10. Nxe5 {[%clk 0:03:02.2]} 10... Nd7 {[%clk 0:02:45.2]} 11. Nd3
{[%clk 0:02:56]} 11... Be7 {[%clk 0:02:43.5]} 12. Nf4 {[%clk 0:02:50.9]} 12...
Nf6 {[%clk 0:02:37.3]} 13. b3 {[%clk 0:02:42.4]} 13... a5 {[%clk 0:02:21.9]} 14.
a4 {[%clk 0:02:25.3]} 14... Ra7 {[%clk 0:02:12.3]} 15. Bb2 {[%clk 0:02:22.4]}
15... Qa8 {[%clk 0:02:12.8]} 16. Qc1 {[%clk 0:02:14.5]} 16... Rd8 {[%clk
0:02:04]} 17. c5 {[%clk 0:02:08.7]} 17... bxc5 {[%clk 0:02:04.5]} 18. Ba3 {[%clk
0:02:09.7]} 18... Nd7 {[%clk 0:01:53.9]} 19. Nd3 {[%clk 0:02:10.1]} 19... Ba6
{[%clk 0:01:55]} 20. dxc5 {[%clk 0:01:59.2]} 20... c6 {[%clk 0:01:46.6]} 21. Rd1
{[%clk 0:01:57.4]} 21... Rb8 {[%clk 0:01:45.9]} 22. Rb1 {[%clk 0:01:57.1]} 22...
Rab7 {[%clk 0:01:46.4]} 23. Qc2 {[%clk 0:01:57.3]} 23... Qa7 {[%clk 0:01:36.5]}
24. Rdc1 {[%clk 0:01:57.9]} 24... Bxd3 {[%clk 0:01:29.1]} 25. exd3 {[%clk
0:01:58.2]} 25... Bf6 {[%clk 0:01:30.2]} 26. Bb2 {[%clk 0:01:38.2]} 26... Bxb2
{[%clk 0:01:29.3]} 27. Rxb2 {[%clk 0:01:39.4]} 27... Rb4 {[%clk 0:01:28.4]} 28.
Qd1 {[%clk 0:01:27.2]} 28... Rxa4 {[%clk 0:01:26.6]} 29. d4 {[%clk 0:01:18.2]}
29... Rab4 {[%clk 0:01:21.7]} 30. Ra1 {[%clk 0:01:19]} 30... Qc7 {[%clk
0:01:12.4]} 31. h4 {[%clk 0:01:16.9]} 31... a4 {[%clk 0:01:08.1]} 32. Ra3 {[%clk
0:00:52.8]} 32... Qb7 {[%clk 0:01:01.5]} 33. Bf1 {[%clk 0:00:49.2]} 33... Rxb3
{[%clk 0:00:58.8]} 34. Rba2 {[%clk 0:00:45.1]} 34... Rxa3 {[%clk 0:00:48.1]} 35.
Rxa3 {[%clk 0:00:47]} 35... Ra8 {[%clk 0:00:48.5]} 36. Rxa4 {[%clk 0:00:47]}
36... Rxa4 {[%clk 0:00:49.5]} 37. Qxa4 {[%clk 0:00:48.9]} 37... g6 {[%clk
0:00:44.1]} 38. Qa5 {[%clk 0:00:38.7]} 38... Kg7 {[%clk 0:00:38]} 39. Qd8 {[%clk
0:00:39.1]} 39... Nf6 {[%clk 0:00:30.8]} 40. Qb6 {[%clk 0:00:39.8]} 40... Qxb6
{[%clk 0:00:31.3]} 41. cxb6 {[%clk 0:00:41.4]} 41... Nd7 {[%clk 0:00:32.3]} 42.
Ba6 {[%clk 0:00:35.2]} 42... Nxb6 {[%clk 0:00:32.1]} 43. Bb7 {[%clk 0:00:36.8]}
43... Nc4 {[%clk 0:00:23.8]} 44. Bxc6 {[%clk 0:00:38.1]} 44... Nd6 {[%clk
0:00:21.9]} 45. g4 {[%clk 0:00:37.5]} 45... h5 {[%clk 0:00:22.2]} 46. f3 {[%clk
0:00:36.4]} 46... Kf6 {[%clk 0:00:22.8]} 47. Kf2 {[%clk 0:00:35.2]} 47... Nc4
{[%clk 0:00:23.1]} 48. Ke2 {[%clk 0:00:34.2]} 48... Na5 {[%clk 0:00:20]} 49. Bb5
{[%clk 0:00:33.9]} 49... Nb7 {[%clk 0:00:19.3]} 50. Ke3 {[%clk 0:00:34.1]} 50...
Nd6 {[%clk 0:00:19.4]} 51. Bd3 {[%clk 0:00:35.6]} 51... hxg4 {[%clk 0:00:18.3]}
52. fxg4 {[%clk 0:00:36.3]} 52... Ne8 {[%clk 0:00:16.1]} 53. Kf4 {[%clk
0:00:35.7]} 53... Ng7 {[%clk 0:00:15.8]} 54. Bb5 {[%clk 0:00:35]} 54... Ke7
{[%clk 0:00:14.5]} 55. Kg5 {[%clk 0:00:36.4]} 55... Ne8 {[%clk 0:00:11.2]} 56.
Bxe8 {[%clk 0:00:37.8]} 56... Kxe8 {[%clk 0:00:12.4]} 57. Kf6 {[%clk 0:00:36.2]}
57... Kf8 {[%clk 0:00:12.8]} 58. h5 {[%clk 0:00:37.6]} 58... gxh5 {[%clk
0:00:13.9]} 59. gxh5 {[%clk 0:00:39.5]} 59... Kg8 {[%clk 0:00:15.1]} 60. h6
{[%clk 0:00:41.2]} 60... Kh7 {[%clk 0:00:16.1]} 61. Kxf7 {[%clk 0:00:42.8]}
61... e5 {[%clk 0:00:16.1]} 62. dxe5 {[%clk 0:00:44.2]} 62... d4 {[%clk
0:00:16.6]} 63. e6 {[%clk 0:00:46.1]} 63... d3 {[%clk 0:00:18.1]} 64. e7 {[%clk
0:00:47.6]} 64... d2 {[%clk 0:00:19.6]} 65. e8=Q {[%clk 0:00:49.1]} 65... d1=Q
{[%clk 0:00:20.3]} 66. Qe4+ {[%clk 0:00:48.7]} 1-0

[Event "*** Qualifier 4: Titled Tuesday 3|2 Blitz"]
[Site "Chess.com"]
[Date "2017.04.25"]
[Round "3"]
[White "AkshatChandra"]
[Black "Marcus_Harvey"]
[Result "1-0"]
[WhiteElo "2688"]
[BlackElo "2513"]
[TimeControl "180+2"]
[EndTime "13:35:09 PDT"]
[Termination "AkshatChandra won by resignation"]

1. d4 {[%clk 0:03:01.9]} 1... e6 {[%clk 0:03:01]} 2. Nf3 {[%clk 0:03:00.8]} 2...
f5 {[%clk 0:03:02.2]} 3. g3 {[%clk 0:03:00.1]} 3... Nf6 {[%clk 0:03:03.3]} 4.
Bg2 {[%clk 0:03:01.8]} 4... Be7 {[%clk 0:03:05]} 5. O-O {[%clk 0:03:03.5]} 5...
O-O {[%clk 0:03:06.7]} 6. c4 {[%clk 0:03:04.8]} 6... d6 {[%clk 0:03:08.3]} 7.
Nc3 {[%clk 0:03:06.2]} 7... a5 {[%clk 0:03:09.4]} 8. b3 {[%clk 0:03:05.4]} 8...
Qe8 {[%clk 0:03:10.1]} 9. Bb2 {[%clk 0:03:06.2]} 9... Qh5 {[%clk 0:03:11]} 10.
Rc1 {[%clk 0:02:51.2]} 10... Na6 {[%clk 0:03:06.9]} 11. e3 {[%clk 0:02:45]}
11... Qh6 {[%clk 0:03:06.7]} 12. Re1 {[%clk 0:02:42.1]} 12... Ne4 {[%clk
0:03:05.1]} 13. Nd2 {[%clk 0:02:35.3]} 13... Nxc3 {[%clk 0:02:33.9]} 14. Bxc3
{[%clk 0:02:37.2]} 14... Nb4 {[%clk 0:02:35.1]} 15. Ra1 {[%clk 0:02:29.2]} 15...
Bf6 {[%clk 0:02:18.3]} 16. a3 {[%clk 0:02:28.3]} 16... Nc6 {[%clk 0:02:19.5]}
17. Rc1 {[%clk 0:02:22]} 17... e5 {[%clk 0:02:17.9]} 18. dxe5 {[%clk 0:02:07.1]}
18... Nxe5 {[%clk 0:02:08.1]} 19. Nf3 {[%clk 0:02:03.2]} 19... Nxf3+ {[%clk
0:01:56.8]} 20. Bxf3 {[%clk 0:02:04.3]} 20... Bxc3 {[%clk 0:01:56]} 21. Rxc3
{[%clk 0:02:06.2]} 21... Qf6 {[%clk 0:01:54.7]} 22. Qd4 {[%clk 0:02:04.4]} 22...
c5 {[%clk 0:01:20.8]} 23. Qd2 {[%clk 0:01:48.7]} 23... a4 {[%clk 0:01:21.9]} 24.
Rb1 {[%clk 0:01:44.2]} 24... Qe7 {[%clk 0:01:09.7]} 25. bxa4 {[%clk 0:01:35.5]}
25... Rxa4 {[%clk 0:01:07.5]} 26. Rcb3 {[%clk 0:01:36.8]} 26... Ra7 {[%clk
0:00:52.8]} 27. Bd5+ {[%clk 0:01:37.9]} 27... Kh8 {[%clk 0:00:53.1]} 28. Qb2
{[%clk 0:01:39.6]} 28... h6 {[%clk 0:00:43.7]} 29. h4 {[%clk 0:01:39.5]} 29...
Rd8 {[%clk 0:00:33.8]} 30. Rb6 {[%clk 0:01:31.4]} 30... Qc7 {[%clk 0:00:27.9]}
31. Qc3 {[%clk 0:01:12.8]} 31... Re8 {[%clk 0:00:22.4]} 32. R6b3 {[%clk
0:01:10]} 32... Re7 {[%clk 0:00:22.4]} 33. Qc1 {[%clk 0:01:09.7]} 33... Qd8
{[%clk 0:00:21.6]} 34. Qb2 {[%clk 0:01:09]} 34... Qf8 {[%clk 0:00:20.3]} 35. Rd1
{[%clk 0:01:04.4]} 35... Rd7 {[%clk 0:00:17.8]} 36. Rbd3 {[%clk 0:01:05.2]}
36... Qe7 {[%clk 0:00:18.4]} 37. Bf3 {[%clk 0:01:02.8]} 37... Ra6 {[%clk
0:00:18.5]} 38. Kg2 {[%clk 0:00:59.8]} 38... Rc7 {[%clk 0:00:19.9]} 39. Qd2
{[%clk 0:01:00.2]} 39... Be6 {[%clk 0:00:20]} 40. Qc2 {[%clk 0:00:52.3]} 40...
Kh7 {[%clk 0:00:21.2]} 41. Bd5 {[%clk 0:00:53.4]} 41... Bxd5+ {[%clk 0:00:20.3]}
42. Rxd5 {[%clk 0:00:54.4]} 42... Qe4+ {[%clk 0:00:21.5]} 43. Qxe4 {[%clk
0:00:55.5]} 43... fxe4 {[%clk 0:00:22.8]} 44. Rxd6 {[%clk 0:00:53.8]} 44... Rxa3
{[%clk 0:00:23.9]} 45. Re6 {[%clk 0:00:53.4]} 45... b5 {[%clk 0:00:15.3]} 46.
cxb5 {[%clk 0:00:52.8]} 46... c4 {[%clk 0:00:16.7]} 47. Rc1 {[%clk 0:00:48.4]}
47... Rb3 {[%clk 0:00:16.5]} 48. Rc6 {[%clk 0:00:46.5]} 48... Re7 {[%clk
0:00:17.3]} 49. Rc5 {[%clk 0:00:43.1]} 49... Rb7 {[%clk 0:00:05.4]} 50. R1xc4
{[%clk 0:00:42.5]} 50... R3xb5 {[%clk 0:00:06.2]} 51. Rxb5 {[%clk 0:00:43.7]}
51... Rxb5 {[%clk 0:00:08.1]} 52. Rxe4 {[%clk 0:00:44.7]} 52... Kg6 {[%clk
0:00:09.9]} 53. g4 {[%clk 0:00:44.7]} 53... Rb2 {[%clk 0:00:11]} 54. h5+ {[%clk
0:00:44.7]} 54... Kf6 {[%clk 0:00:11.5]} 55. Rf4+ {[%clk 0:00:44.6]} 55... Ke6
{[%clk 0:00:10]} 56. Kg3 {[%clk 0:00:46.1]} 56... Rb1 {[%clk 0:00:11.2]} 57. Ra4
{[%clk 0:00:46.4]} 57... Kf6 {[%clk 0:00:11.9]} 58. Ra6+ {[%clk 0:00:46.9]}
58... Kf7 {[%clk 0:00:12.7]} 59. f3 {[%clk 0:00:46.7]} 59... Rb4 {[%clk
0:00:14]} 60. e4 {[%clk 0:00:47.8]} 60... Rc4 {[%clk 0:00:15.4]} 61. Ra3 {[%clk
0:00:48.1]} 61... Rb4 {[%clk 0:00:16.7]} 62. Kf4 {[%clk 0:00:49.3]} 62... Rc4
{[%clk 0:00:18]} 63. Kf5 {[%clk 0:00:50.5]} 63... Rc5+ {[%clk 0:00:19.4]} 64. e5
{[%clk 0:00:51.9]} 64... Rc7 {[%clk 0:00:20.7]} 65. f4 {[%clk 0:00:52.8]} 65...
Re7 {[%clk 0:00:21.9]} 66. Ra6 {[%clk 0:00:53.8]} 66... Rb7 {[%clk 0:00:22.9]}
67. Rd6 {[%clk 0:00:55.3]} 67... Ra7 {[%clk 0:00:23.3]} 68. Rd7+ {[%clk
0:00:52.1]} 68... Rxd7 {[%clk 0:00:19.2]} 69. e6+ {[%clk 0:00:53.6]} 1-0

[Event "*** Qualifier 4: Titled Tuesday 3|2 Blitz"]
[Site "Chess.com"]
[Date "2017.04.25"]
[Round "3"]
[White "ChessQueen"]
[Black "Astaneh"]
[Result "1-0"]
[WhiteElo "2499"]
[BlackElo "2448"]
[TimeControl "180+2"]
[EndTime "13:35:09 PDT"]
[Termination "ChessQueen won by resignation"]

1. e4 {[%clk 0:03:02]} 1... c5 {[%clk 0:02:55.8]} 2. Nf3 {[%clk 0:03:02.7]} 2...
e6 {[%clk 0:02:55.4]} 3. d4 {[%clk 0:03:03.4]} 3... cxd4 {[%clk 0:02:57.3]} 4.
Nxd4 {[%clk 0:03:04.6]} 4... a6 {[%clk 0:02:59]} 5. Bd3 {[%clk 0:03:02.9]} 5...
Bc5 {[%clk 0:02:59.2]} 6. Be3 {[%clk 0:03:02.7]} 6... Qb6 {[%clk 0:02:36.2]} 7.
c3 {[%clk 0:03:02.8]} 7... Nc6 {[%clk 0:02:37]} 8. O-O {[%clk 0:02:58.4]} 8...
Nxd4 {[%clk 0:02:35.1]} 9. cxd4 {[%clk 0:02:59.2]} 9... Bxd4 {[%clk 0:02:37]}
10. Bxd4 {[%clk 0:02:59.3]} 10... Qxd4 {[%clk 0:02:38.9]} 11. Qe2 {[%clk
0:02:56.6]} 11... Ne7 {[%clk 0:02:34.1]} 12. Rd1 {[%clk 0:02:53.1]} 12... Qe5
{[%clk 0:02:25]} 13. Nd2 {[%clk 0:02:50.7]} 13... Qxb2 {[%clk 0:02:06.5]} 14.
Qe3 {[%clk 0:02:14.4]} 14... d5 {[%clk 0:01:49]} 15. Rdb1 {[%clk 0:01:58.4]}
15... Qe5 {[%clk 0:01:39.4]} 16. Nf3 {[%clk 0:01:54.7]} 16... Qd6 {[%clk
0:01:37.1]} 17. e5 {[%clk 0:01:50]} 17... Qc7 {[%clk 0:01:35.4]} 18. Rc1 {[%clk
0:01:49.1]} 18... Nc6 {[%clk 0:01:36.4]} 19. Qg5 {[%clk 0:01:49.5]} 19... O-O
{[%clk 0:01:31.7]} 20. Bxh7+ {[%clk 0:01:33.8]} 20... Kxh7 {[%clk 0:01:32.8]}
21. Qh5+ {[%clk 0:01:35.4]} 21... Kg8 {[%clk 0:01:34.7]} 22. Ng5 {[%clk
0:01:36.6]} 22... Re8 {[%clk 0:01:05.4]} 23. Qh7+ {[%clk 0:01:37.1]} 23... Kf8
{[%clk 0:01:06.9]} 24. Qh8+ {[%clk 0:01:38.8]} 24... Ke7 {[%clk 0:01:08.5]} 25.
Qxg7 {[%clk 0:01:40.5]} 25... Rf8 {[%clk 0:00:50.5]} 26. Nh7 {[%clk 0:01:27.3]}
26... Qd8 {[%clk 0:00:22.5]} 27. Nxf8 {[%clk 0:01:11.3]} 27... Qxf8 {[%clk
0:00:23.7]} 28. Qf6+ {[%clk 0:01:11.8]} 28... Ke8 {[%clk 0:00:15]} 29. h4 {[%clk
0:01:06.3]} 29... Qe7 {[%clk 0:00:15.2]} 30. Qf4 {[%clk 0:01:04.6]} 30... Qf8
{[%clk 0:00:11.5]} 31. h5 {[%clk 0:01:04.2]} 31... Qg7 {[%clk 0:00:11.9]} 32. h6
{[%clk 0:00:57.8]} 32... Qxe5 {[%clk 0:00:12.3]} 33. Qg4 {[%clk 0:00:47.9]}
33... Ke7 {[%clk 0:00:08.2]} 34. Re1 {[%clk 0:00:44.2]} 34... Qf6 {[%clk
0:00:07.7]} 35. Rad1 {[%clk 0:00:39.2]} 35... d4 {[%clk 0:00:05]} 36. Qh5 {[%clk
0:00:36.8]} 36... Bd7 {[%clk 0:00:06.1]} 37. Qc5+ {[%clk 0:00:37.1]} 37... Ke8
{[%clk 0:00:07.4]} 38. h7 {[%clk 0:00:32.3]} 38... Qg7 {[%clk 0:00:07.4]} 39.
Qh5 {[%clk 0:00:32.2]} 39... Ke7 {[%clk 0:00:08.7]} 40. Re4 {[%clk 0:00:30.8]}
40... Rh8 {[%clk 0:00:09.7]} 41. Rh4 {[%clk 0:00:30.8]} 41... Qf6 {[%clk
0:00:10.3]} 42. Rg4 {[%clk 0:00:28.2]} 42... Qf5 {[%clk 0:00:10]} 43. Qh4+
{[%clk 0:00:28.3]} 43... Qf6 {[%clk 0:00:11.5]} 44. Qh5 {[%clk 0:00:23.3]} 44...
Qf5 {[%clk 0:00:12.4]} 45. Qh4+ {[%clk 0:00:23.3]} 45... Kd6 {[%clk 0:00:13.9]}
46. Qh2+ {[%clk 0:00:22.5]} 46... e5 {[%clk 0:00:14.5]} 47. Rh4 {[%clk
0:00:23.9]} 47... Be6 {[%clk 0:00:15.1]} 48. Rh6 {[%clk 0:00:18.5]} 48... d3
{[%clk 0:00:15.7]} 49. Qg3 {[%clk 0:00:19.3]} 49... Nd4 {[%clk 0:00:16.7]} 50.
Qg8 {[%clk 0:00:18.2]} 50... Nf3+ {[%clk 0:00:06.5]} 51. Kh1 {[%clk 0:00:18.8]}
51... Ng5 {[%clk 0:00:03.1]} 52. Qxh8 {[%clk 0:00:17.8]} 52... Ne4 {[%clk
0:00:04.6]} 53. Qd8+ {[%clk 0:00:17.8]} 53... Kc6 {[%clk 0:00:06.1]} 54. Rc1+
{[%clk 0:00:14.3]} 54... Kb5 {[%clk 0:00:05.1]} 55. Qxd3+ {[%clk 0:00:15.3]}
55... Kb6 {[%clk 0:00:07]} 56. Qe3+ {[%clk 0:00:16.2]} 56... Kb5 {[%clk
0:00:08.5]} 57. h8=Q {[%clk 0:00:14.9]} 57... Nxf2+ {[%clk 0:00:09.1]} 58. Qxf2
{[%clk 0:00:16.2]} 58... Qxf2 {[%clk 0:00:10.2]} 59. Qxe5+ {[%clk 0:00:17.9]}
59... Kb6 {[%clk 0:00:11.1]} 1-0